fUST/lending_fUST_20251025
["ID","MTS","AMOUNT","RATE_DAILY","PERIOD"]
[392343804,1761376249168,-1500.0,0.00023868,2]
[392343805,1761376249177,-332.98567587,0.00023868,2]
[392343806,1761376249186,-360.0,0.00023896,2]
[392343807,1761376249195,-2000.0,0.00024416,2]
[392343808,1761376249204,-460.0,0.00024444,2]
[392343809,1761376249213,-380.0,0.00024658,2]
[392343810,1761376249221,-287.0,0.0002472,2]
[392343811,1761376249230,-500.0,0.00024873,2]
[392343812,1761376249239,-150.0,0.00024873,2]
[392343813,1761376249248,-258.22102486,0.00024873,2]
[392343814,1761376249256,-401.17372324,0.00024882,2]
[392343815,1761376249265,-480392.88323293,0.000249,2]
[392343820,1761376971072,500.0,0.000201,10]
[392343861,1761377308852,2000.0,0.00030136,120]
[392343866,1761377339633,2000.0,0.00030136,120]
[392343882,1761377432594,-1219.37,0.00022516,10]
[392343883,1761377432604,-1220.1074315,0.00022516,10]
[392343884,1761377432616,-1210.5125685,0.00022516,10]
[392343885,1761377432626,-2025.52,0.00022516,10]
[392343886,1761377432636,-184477.98178978,0.00022526,2]
[392343887,1761377432648,-3123.308164,0.00022526,2]
[392343931,1761377438474,-500.0,0.00022525,2]
[392343933,1761377438484,-500.0,0.00022525,2]
[392343935,1761377438494,-436.91806985,0.00022525,2]
[392343936,1761377438503,-500.0,0.00022525,2]
[392343937,1761377438516,-500.0,0.00022525,2]
[392343938,1761377438526,-500.0,0.00022525,2]
[392343939,1761377438535,-500.0,0.00022525,2]
[392343940,1761377438544,-500.0,0.00022525,2]
[392343941,1761377438554,-500.0,0.00022525,2]
[392343942,1761377438563,-500.0,0.00022525,2]
[392343943,1761377438573,-500.0,0.00022525,2]
[392343944,1761377438582,-500.0,0.00022525,2]
[392343945,1761377438591,-500.0,0.00022525,2]
[392343946,1761377438600,-603.1509702,0.00022525,2]
[392343947,1761377438610,-500.0,0.00022525,2]
[392343948,1761377438619,-500.0,0.00022525,2]
[392343949,1761377438629,-500.0,0.00022525,2]
[392343950,1761377438638,-500.0,0.00022525,2]
[392343951,1761377438648,-336.11717511,0.00022525,2]
[392343952,1761377438657,-500.0,0.00022525,2]
[392343953,1761377438667,-500.0,0.00022525,2]
[392343954,1761377438676,-119.82579265,0.00022525,2]
[392343993,1761377440742,-380.17420735,0.00022525,2]
[392343994,1761377440752,-157.12439187,0.00022525,2]
[392344025,1761377443667,-837.09716301,0.00022454,2]
[392344027,1761377443676,-279.90283699,0.00022525,2]
[392344222,1761377446595,-1687.93,0.00022516,10]
[392344223,1761377446604,-62.97277114,0.00022525,2]
[392344224,1761377446614,-500.0,0.00022525,2]
[392344225,1761377446623,-500.0,0.00022525,2]
[392344226,1761377446632,-500.0,0.00022525,2]
[392344227,1761377446642,-500.0,0.00022525,2]
[392344228,1761377446651,-500.0,0.00022525,2]
[392344229,1761377446661,-575.79354988,0.00022525,2]
[392344230,1761377446670,-396301.82048522,0.00022526,2]
[392344231,1761377446680,-284.71604679,0.00022554,2]
[392344232,1761377446689,-509.0,0.00022572,2]
[392344233,1761377446698,-300.0,0.00022572,2]
[392344234,1761377446707,-227.63747295,0.00022573,2]
[392344235,1761377446716,-5653.64879081,0.00022573,2]
[392344236,1761377446726,-370000.0,0.00022626,2]
[392344237,1761377446736,-500.0,0.00022673,2]
[392344238,1761377446746,-4280.24,0.000227,7]
[392344239,1761377446755,-61708.89334946,0.0002299,2]
[392344240,1761377446765,-253.00496487,0.00023043,7]
[392344241,1761377446774,-227.63747292,0.00023155,2]
[392344242,1761377446783,-454.22581005,0.00023221,2]
[392344243,1761377446792,-166.397,0.00023269,2]
[392344244,1761377446801,-634.412,0.00023269,2]
[392344245,1761377446811,-411.0,0.00023269,2]
[392344246,1761377446820,-433.679,0.00023269,2]
[392344248,1761377446829,-388.0,0.00023331,2]
[392344249,1761377446838,-181.87279935,0.00023362,2]
[392344250,1761377446847,-327.37103883,0.00023463,2]
[392344251,1761377446856,-309.86069874,0.00023463,2]
[392344252,1761377446866,-765.0,0.000235,2]
[392344253,1761377446875,-388.0,0.0002363,2]
[392344254,1761377446884,-388.0,0.00023665,2]
[392344255,1761377446895,-227.63747292,0.00023738,2]
[392344256,1761377446905,-388.0,0.00023879,2]
[392344257,1761377446914,-388.0,0.00023962,2]
[392344258,1761377446924,-388.0,0.00023973,2]
[392344259,1761377446935,-388.0,0.00023981,2]
[392344260,1761377446944,-388.0,0.00024015,2]
[392344261,1761377446953,-388.0,0.0002411,2]
[392344262,1761377446963,-388.0,0.00024192,2]
[392344263,1761377446972,-388.0,0.0002423,2]
[392344264,1761377446981,-581.41096495,0.00024252,2]
[392344265,1761377446990,-353.77238633,0.00024253,2]
[392344266,1761377446999,-227.63747292,0.0002432,2]
[392344267,1761377447008,-388.0,0.00024436,2]
[392344268,1761377447017,-335.96493521,0.00024554,2]
[392344269,1761377447026,-388.0,0.00024574,2]
[392344270,1761377447036,-388.0,0.00024644,2]
[392344271,1761377447045,-1089.3573547,0.00024741,2]
[392344272,1761377447054,-26563.5348982,0.00024741,2]
[392344273,1761377447063,-388.0,0.00024745,2]
[392344274,1761377447074,-261.243859,0.000248,2]
[392344275,1761377447084,-157.849333,0.000248,2]
[392344276,1761377447094,-194.883108,0.000248,2]
[392344277,1761377447109,-168.0,0.00024867,2]
[392344278,1761377447123,-500.0,0.00024873,2]
[392344279,1761377447132,-501.72310409,0.00024873,2]
[392344280,1761377447142,-463514.849541,0.000249,2]
[392344281,1761377447151,-227.63747292,0.00024902,2]
[392344282,1761377447161,-388.0,0.00024905,2]
[392344283,1761377447170,-388.0,0.00024954,2]
[392344284,1761377447180,-500.0,0.00024973,2]
[392344285,1761377447190,-500.0,0.00024973,2]
[392344286,1761377447199,-596506.74049851,0.00025,2]
[392344289,1761377648787,2000.0,0.00030136,120]
[392344300,1761378036588,4077.99,0.00030136,120]
[392344305,1761378164971,1727.60539,0.00030136,120]
[392344441,1761378513833,540.0,0.00030137,120]
[392344442,1761378515967,443.885403,0.00013699,2]
[392344443,1761378545222,1096.0,0.00030137,120]
[392344537,1761378632048,-443.885403,0.00020187,2]
[392344539,1761378632056,-314.537196,0.00021493,2]
[392344541,1761378632065,-300.0,0.00021989,2]
[392344543,1761378632074,-300.0,0.00021989,2]
[392344545,1761378632083,-1200.0,0.00021989,2]
[392344547,1761378632092,-104.93766241,0.00021989,2]
[392344549,1761378632103,-195.06233759,0.00021989,2]
[392344551,1761378632112,-300.0,0.00021989,2]
[392344553,1761378632121,-10070.43766241,0.0002199,2]
[392344568,1761378632255,-31260.97231835,0.0002199,2]
[392344570,1761378632264,-2132.05,0.00022426,2]
[392344572,1761378632274,-277.41117338,0.0002244,2]
[392344574,1761378632283,-3769.09919386,0.00022473,2]
[392344576,1761378632291,-501.82650497,0.000225,2]
[392344578,1761378632300,-1964.47,0.00022505,10]
[392344580,1761378632309,-1637.06,0.00022505,10]
[392344582,1761378632319,-1364.21,0.00022505,10]
[392344584,1761378632328,-1200.0,0.00022514,2]
[392344586,1761378632337,-50000.0,0.00022515,2]
[392344588,1761378632346,-98171.34516117,0.00022526,2]
[392344838,1761378644794,-452.86594999,0.00021989,2]
[392344840,1761378644803,-500.0,0.00021989,2]
[392344842,1761378644812,-171.54365532,0.00021989,2]
[392344844,1761378644821,-500.0,0.00021989,2]
[392344846,1761378644830,-500.0,0.00021989,2]
[392344848,1761378644839,-178.12788558,0.00021989,2]
[392344850,1761378644848,-500.0,0.00021989,2]
[392344852,1761378644857,-546.91431698,0.00021989,2]
[392344854,1761378644867,-518.1944225,0.00021989,2]
[392344856,1761378644876,-500.0,0.00021989,2]
[392344858,1761378644885,-97.95376963,0.00021989,2]
[392344873,1761378645808,-402.04623037,0.00021989,2]
[392344874,1761378645817,-500.0,0.00021989,2]
[392344875,1761378645827,-500.0,0.00021989,2]
[392344876,1761378645837,-500.0,0.00021989,2]
[392344877,1761378645846,-500.0,0.00021989,2]
[392344878,1761378645856,-141.00376963,0.00021989,2]
[392344893,1761379724255,7580.28087709,0.000187,2]
[392344894,1761379724277,2419.71912291,0.000187,2]
[392344895,1761379738333,10000.0,0.000201,10]
[392344896,1761379757856,655.99,0.00030137,120]
[392344897,1761379775664,7580.29087709,0.000187,2]
[392344898,1761379775692,2419.70912291,0.000187,2]
[392344933,1761379831938,-643.38463956,0.0002139,2]
[392344935,1761379831948,-278.40385514,0.00021395,2]
[392344937,1761379831957,-440.795749,0.000214,2]
[392344938,1761379831968,-613.5,0.000214,2]
[392344939,1761379832079,-460.49673598,0.000214,2]
[392345128,1761379845181,-317.62803544,0.000214,2]
[392345148,1761380136239,6751.0,0.000187,2]
[392345164,1761380414065,1170.1249338,0.00030137,120]
[392345220,1761380865623,829.30087709,0.00018,2]
[392345221,1761380865650,9198.12018793,0.00018,2]
[392345249,1761380878451,5000.0,0.000201,9]
[392345251,1761380886312,5000.0,0.000201,9]
[392345252,1761380900490,801.88981207,0.000176,2]
[392345253,1761380900512,1314.27334563,0.000176,2]
[392345254,1761380903888,286.81947439,0.0001,2]
[392345309,1761381032055,-596.84619166,0.00019931,2]
[392345311,1761381032067,-4403.15380834,0.00019931,2]
[392345313,1761381032076,-1091.05335268,0.00020132,2]
[392345314,1761381032085,-205.68315899,0.00020335,2]
[392345316,1761381032094,-297.55818476,0.00020368,2]
[392345318,1761381032103,-500.0,0.000204,2]
[392345319,1761381032113,-300.0,0.00020434,2]
[392345320,1761381032122,-300.0,0.00020434,2]
[392345321,1761381032131,-300.0,0.00020434,2]
[392345322,1761381032140,-1200.0,0.00020434,2]
[392345324,1761381032150,-300.0,0.00020434,2]
[392345325,1761381032159,-300.0,0.00020434,2]
[392345327,1761381032168,-7047.0974202,0.00020435,2]
[392345329,1761381032177,-150.0,0.00020933,30]
[392345331,1761381032186,-848.98702955,0.00021082,2]
[392345332,1761381032195,-500.0,0.00021181,2]
[392345334,1761381032204,-500.0,0.00021181,2]
[392345336,1761381032214,-500.0,0.00021181,2]
[392345338,1761381032223,-500.0,0.00021181,2]
[392345340,1761381032234,-500.0,0.00021181,2]
[392345342,1761381032243,-500.0,0.00021181,2]
[392345344,1761381032252,-500.0,0.00021181,2]
[392345346,1761381032262,-438.73440554,0.00021181,2]
[392345348,1761381032271,-500.0,0.00021181,2]
[392345349,1761381032280,-500.0,0.00021181,2]
[392345351,1761381032290,-500.0,0.00021181,2]
[392345353,1761381032299,-500.0,0.00021181,2]
[392345355,1761381032308,-500.0,0.00021181,2]
[392345357,1761381032317,-500.0,0.00021181,2]
[392345358,1761381032326,-500.0,0.00021181,2]
[392345360,1761381032335,-499.99999999,0.00021181,2]
[392345362,1761381032344,-1200.0,0.00021181,2]
[392345364,1761381032353,-1908.55792817,0.00021254,2]
[392345366,1761381032362,-274.711,0.00021299,2]
[392345368,1761381032371,-504.28762988,0.00021473,2]
[392345369,1761381032380,-500.93393778,0.00021473,2]
[392345371,1761381032389,-500.0,0.00021473,2]
[392345373,1761381032398,-500.83492468,0.00021473,2]
[392345374,1761381032407,-500.0,0.00021473,2]
[392345375,1761381032417,-351.51046402,0.00021473,2]
[392345376,1761381032427,-500.69893169,0.00021473,2]
[392345377,1761381032437,-500.0,0.00021473,2]
[392345378,1761381032446,-501.42262074,0.00021473,2]
[392345379,1761381032455,-500.0,0.00021473,2]
[392345380,1761381032464,-501.96292705,0.00021473,2]
[392345381,1761381032474,-500.0,0.00021473,2]
[392345382,1761381032483,-501.04402784,0.00021473,2]
[392345383,1761381032494,-780.66,0.0002149,10]
[392345384,1761381032504,-1218.87,0.0002149,10]
[392345385,1761381032514,-224.17784935,0.00021492,2]
[392345386,1761381032524,-573.51245325,0.00021496,2]
[392345387,1761381032533,-500.0,0.00021499,2]
[392345388,1761381032542,-500.0,0.00021499,2]
[392345389,1761381032551,-500.0,0.00021499,2]
[392345390,1761381032560,-500.0,0.00021499,2]
[392345391,1761381032570,-365.48269328,0.00021499,2]
[392345392,1761381032579,-13069.13418154,0.000215,2]
[392345630,1761381361888,512.031354,0.00013699,2]
[392345653,1761382232232,-1890.873465,0.00020051,2]
[392345656,1761382232244,-332.4989453,0.0002007,2]
[392345658,1761382232254,-633.58338267,0.000201,2]
[392345660,1761382232263,-512.031354,0.00020187,2]
[392345662,1761382232272,-1890.873465,0.00020384,2]
[392345664,1761382232282,-1200.0,0.00020451,2]
[392345666,1761382232292,-4025.75634447,0.00020452,2]
[392345668,1761382232300,-300.0,0.00020513,2]
[392345669,1761382232310,-1890.873465,0.0002055,2]
[392345670,1761382232319,-742.8636509,0.00020694,2]
[392345671,1761382232329,-175.283,0.00020795,2]
[392345672,1761382232338,-219.768,0.00020841,2]
[392345673,1761382232347,-1890.873465,0.00020899,2]
[392345674,1761382232355,-150.0,0.00020925,30]
[392345675,1761382232364,-151.0,0.00021137,7]
[392345676,1761382232374,-151.0,0.00021137,7]
[392345677,1761382232383,-610.366258,0.00021137,7]
[392345678,1761382232392,-151.0,0.00021137,7]
[392345679,1761382232401,-610.366258,0.00021137,7]
[392345680,1761382232411,-610.366258,0.00021137,7]
[392345681,1761382232420,-610.366258,0.00021137,7]
[392345682,1761382232428,-151.0,0.00021137,7]
[392345683,1761382232438,-151.0,0.00021137,7]
[392345684,1761382232447,-170.086856,0.00021137,7]
[392345685,1761382232456,-3149.87180589,0.00021137,2]
[392345686,1761382232465,-151.0,0.00021146,7]
[392345687,1761382232474,-152.583838,0.00021146,7]
[392345688,1761382232485,-151.0,0.00021146,7]
[392345689,1761382232494,-155.447329,0.00021146,7]
[392345690,1761382232502,-154.966809,0.00021146,7]
[392345691,1761382232511,-151.0,0.00021146,7]
[392345692,1761382232524,-151.0,0.00021146,7]
[392345693,1761382232540,-151.0,0.00021146,7]
[392345694,1761382232550,-151.0,0.00021146,7]
[392345695,1761382232559,-155.317434,0.00021146,7]
[392345696,1761382232568,-151.0,0.00021146,7]
[392345697,1761382232577,-151.0,0.00021146,7]
[392345698,1761382232586,-176.619328,0.00021146,7]
[392345699,1761382232596,-176.619328,0.00021146,7]
[392345700,1761382232604,-151.0,0.00021146,7]
[392345701,1761382232613,-176.619328,0.00021146,7]
[392345702,1761382232622,-176.619328,0.00021146,7]
[392345703,1761382232632,-241.437225,0.00021146,7]
[392345704,1761382232641,-255.105326,0.00021146,7]
[392345705,1761382232651,-255.105326,0.00021146,7]
[392345706,1761382232660,-255.105326,0.00021146,7]
[392345707,1761382232669,-255.105326,0.00021146,7]
[392345708,1761382232678,-151.986317,0.00021146,7]
[392345709,1761382232687,-2781.037454,0.00021146,7]
[392345710,1761382232696,-2781.037454,0.00021146,7]
[392345711,1761382232706,-2781.037454,0.00021146,7]
[392345712,1761382232715,-2781.037454,0.00021146,7]
[392345713,1761382232724,-151.0,0.00021146,7]
[392345714,1761382232962,-151.0,0.00021146,7]
[392345715,1761382232972,-151.0,0.00021146,7]
[392345716,1761382232981,-472.450655,0.00021146,7]
[392345717,1761382232990,-472.450655,0.00021146,7]
[392345718,1761382232999,-153.240435,0.00021146,7]
[392345719,1761382233008,-472.450655,0.00021146,7]
[392345720,1761382233017,-472.450655,0.00021146,7]
[392345721,1761382233026,-230.805903,0.00021146,7]
[392345722,1761382233035,-165.210773,0.00021146,7]
[392345723,1761382233044,-314.986266,0.00021146,7]
[392345724,1761382233053,-314.986266,0.00021146,7]
[392345725,1761382233063,-314.986266,0.00021146,7]
[392345726,1761382233071,-314.986266,0.00021146,7]
[392345727,1761382233080,-151.0,0.00021146,7]
[392345728,1761382233090,-151.0,0.00021146,7]
[392345729,1761382233099,-610.366258,0.00021146,7]
[392345730,1761382233108,-151.0,0.00021146,7]
[392345731,1761382233117,-610.366258,0.00021146,7]
[392345732,1761382233127,-610.366258,0.00021146,7]
[392345733,1761382233136,-610.366258,0.00021146,7]
[392345734,1761382233145,-151.0,0.00021146,7]
[392345735,1761382233154,-151.0,0.00021146,7]
[392345736,1761382233163,-214.555107,0.00021146,7]
[392345737,1761382233173,-206.574914,0.00021146,7]
[392345738,1761382233182,-37.96370692,0.00021146,7]
[392345739,1761382236165,-500.0,0.00021136,2]
[392345740,1761382236174,-441.23670608,0.00021136,2]
[392345741,1761382236185,-58.76329392,0.00021136,2]
[392345742,1761382236193,-482.87313328,0.00021136,2]
[392345789,1761382238111,-17.12686672,0.00021136,2]
[392345791,1761382238121,-363.76815691,0.00021136,2]
[392345793,1761382238132,-139.83878747,0.00021136,2]
[392345795,1761382238141,-176.59995578,0.00021136,2]
[392345797,1761382238151,-200.0,0.00021136,2]
[392345799,1761382238160,-200.68857626,0.00021136,2]
[392345802,1761382238171,-299.31142374,0.00021136,2]
[392345804,1761382238181,-243.82848598,0.00021136,2]
[392345806,1761382238190,-500.0,0.00021136,2]
[392345808,1761382238200,-20.39899237,0.00021136,2]
[392345810,1761382238215,-479.60100763,0.00021136,2]
[392345812,1761382238224,-593.87344056,0.00021136,2]
[392345814,1761382238233,-395.56445325,0.00021136,2]
[392345816,1761382238245,-104.43554675,0.00021136,2]
[392345820,1761382238254,-500.0,0.00021136,2]
[392345823,1761382238264,-33.89602464,0.00021136,2]
[392345827,1761382238276,-466.10397536,0.00021136,2]
[392345829,1761382238285,-3.03144015,0.00021136,2]
[392345831,1761382238300,-496.96855985,0.00021136,2]
[392345833,1761382238309,-500.0,0.00021136,2]
[392345836,1761382238319,-500.0,0.00021136,2]
[392345838,1761382238328,-500.0,0.00021136,2]
[392345839,1761382238338,-500.0,0.00021136,2]
[392345842,1761382238348,-500.0,0.00021136,2]
[392345844,1761382238357,-470.0210612,0.00021136,2]
[392345846,1761382238366,-168.61120708,0.00021146,7]
[392345848,1761382238376,-206.574914,0.00021146,7]
[392345850,1761382238386,-206.574914,0.00021146,7]
[392345852,1761382238395,-206.574914,0.00021146,7]
[392345854,1761382238404,-151.0,0.00021146,7]
[392345856,1761382238413,-206.574914,0.00021146,7]
[392345858,1761382238423,-151.0,0.00021146,7]
[392345860,1761382238432,-206.574914,0.00021146,7]
[392345862,1761382238442,-206.574914,0.00021146,7]
[392345864,1761382238451,-152.869598,0.00021146,7]
[392345866,1761382238461,-195.127346,0.00021146,7]
[392345868,1761382238470,-500.0,0.00021146,7]
[392345869,1761382238480,-1195.78274403,0.00021195,2]
[392345979,1761382240424,-2028.67607421,0.00021195,2]
[392345980,1761382240536,-666.34338392,0.00021195,2]
[392345990,1761382243315,-257.85858567,0.00021,2]
[392345991,1761382243327,-418.93857618,0.00021,2]
[392345992,1761382243476,-18606.69896295,0.00021,2]
[392345993,1761382243490,-10895.41204724,0.00021,2]
[392345998,1761382246351,-594.10547258,0.00021,2]
[392345999,1761382246404,-7446.18959536,0.00021,2]
[392346001,1761382753696,7701.65,0.000187,2]
[392346004,1761383166551,5000.0,0.000187,2]
[392346005,1761383188908,5000.0,0.000187,2]
[392346006,1761383211334,0.01,0.000187,2]
[392346007,1761383211356,4999.99,0.000187,2]
[392346009,1761383280074,299.96,0.00015984,2]
[392346010,1761383405433,1200.0,0.00018699,2]
[392346030,1761383432433,-300.0,0.000187,2]
[392346032,1761383432442,-300.0,0.000187,2]
[392346034,1761383432452,-300.0,0.000187,2]
[392346036,1761383432461,-300.0,0.000187,2]
[392346038,1761383432470,-500.0,0.000187,2]
[392346040,1761383432479,-352.70116809,0.000188,2]
[392346042,1761383432489,-300.0,0.00019264,2]
[392346044,1761383432498,-300.0,0.00019265,2]
[392346046,1761383432507,-300.0,0.00019265,2]
[392346048,1761383432517,-300.0,0.00019265,2]
[392346050,1761383432526,-300.0,0.00019265,2]
[392346052,1761383432535,-1200.0,0.00019266,2]
[392346054,1761383432544,-4995.89683191,0.00019268,2]
[392346057,1761383432559,-400.54221565,0.00019268,2]
[392346059,1761383432571,-876.17897709,0.00019268,2]
[392346061,1761383432579,-268.97102291,0.00019273,2]
[392346095,1761383438388,-231.02897709,0.00019273,2]
[392346096,1761383438399,-501.33606962,0.00019273,2]
[392346097,1761383438409,-502.77626158,0.00019273,2]
[392346098,1761383438419,-500.0,0.00019273,2]
[392346099,1761383438429,-500.0,0.00019273,2]
[392346100,1761383438439,-474.64769592,0.00019273,2]
[392346101,1761383438451,-26.63121238,0.00019273,2]
[392346102,1761383438461,-500.0,0.00019273,2]
[392346103,1761383438470,-266.28079315,0.00019273,2]
[392346104,1761383438480,-154.35875837,0.00019273,2]
[392346105,1761383438491,-348.59701057,0.00019273,2]
[392346106,1761383438501,-501.60638858,0.00019273,2]
[392346107,1761383438512,-500.0,0.00019273,2]
[392346108,1761383438521,-500.0,0.00019273,2]
[392346109,1761383438531,-501.86689631,0.00019273,2]
[392346110,1761383438540,-500.0,0.00019273,2]
[392346111,1761383438550,-501.42261545,0.00019273,2]
[392346112,1761383438561,-502.5874399,0.00019273,2]
[392346113,1761383438570,-500.0,0.00019273,2]
[392346114,1761383438580,-150.0,0.00019273,2]
[392346115,1761383438590,-376.10451013,0.00019273,2]
[392346116,1761383438600,-501.23355657,0.00019273,2]
[392346117,1761383438609,-500.0,0.00019276,2]
[392346118,1761383438619,-500.0,0.00019276,2]
[392346119,1761383438629,-500.0,0.00019276,2]
[392346120,1761383438639,-500.0,0.00019276,2]
[392346121,1761383438648,-442.58158249,0.00019276,2]
[392346122,1761383438659,-526.68167768,0.00019276,2]
[392346123,1761383438669,-500.0,0.00019276,2]
[392346124,1761383438678,-500.0,0.00019276,2]
[392346125,1761383438688,-500.0,0.00019276,2]
[392346126,1761383438698,-168.88492106,0.00019276,2]
[392346148,1761383440600,-993.84,0.00019273,2]
[392346149,1761383440612,-8761.07099164,0.00019273,2]
[392346261,1761383512303,162.2,0.00030137,120]
[392346263,1761383611912,348.58577592,0.0001841,2]
[392346264,1761383786738,226.83135896,0.0001841,2]
[392346265,1761384054372,155.42067744,0.00030137,120]
[392346293,1761384323455,1000.0,0.000186,2]
[392346304,1761384355845,162.23370265,0.00018,2]
[392346325,1761384452860,1544.905,0.00030137,120]
[392346334,1761384466396,1762.40916247,0.00018,2]
[392346335,1761384466420,6204.34750434,0.00018,2]
[392346438,1761384577364,220.18,0.000187,2]
[392346547,1761384633278,-300.0,0.00018903,2]
[392346554,1761384638663,-45.64714473,0.00018903,2]
[392346556,1761384638673,-200.0,0.00018903,2]
[392346558,1761384638682,-448.66819328,0.00018973,2]
[392346747,1761384643795,-53.68114231,0.00018973,2]
[392346749,1761384643805,-501.51115859,0.00018973,2]
[392346751,1761384643814,-500.0,0.00018973,2]
[392346752,1761384643824,-500.0,0.00018973,2]
[392346753,1761384643833,-500.0,0.00018973,2]
[392346754,1761384643842,-502.2607581,0.00018973,2]
[392346755,1761384643851,-500.0,0.00018973,2]
[392346756,1761384643861,-501.02628355,0.00018973,2]
[392346757,1761384643870,-501.58647683,0.00018973,2]
[392346758,1761384643879,-1448.24,0.0001898,3]
[392346759,1761384643888,-173.0,0.00018988,2]
[392346760,1761384643897,-300.0,0.00018988,2]
[392346761,1761384643906,-300.0,0.00018988,2]
[392346762,1761384643915,-300.0,0.00018988,2]
[392346763,1761384643925,-1200.0,0.00018988,2]
[392346764,1761384643935,-517.89917024,0.00018988,2]
[392346765,1761384643944,-500.0,0.00018988,2]
[392346766,1761384643954,-500.0,0.00018988,2]
[392346767,1761384643963,-500.0,0.00018988,2]
[392346768,1761384643972,-500.0,0.00018988,2]
[392346769,1761384643982,-500.0,0.00018988,2]
[392346770,1761384643991,-264.52463952,0.00018988,2]
[392346771,1761384644000,-500.0,0.00018988,2]
[392346772,1761384644009,-500.0,0.00018988,2]
[392346773,1761384644018,-500.0,0.00018988,2]
[392346774,1761384644027,-500.0,0.00018988,2]
[392346775,1761384644037,-500.0,0.00018988,2]
[392346776,1761384644046,-500.0,0.00018988,2]
[392346777,1761384644056,-500.0,0.00018988,2]
[392346778,1761384644066,-500.0,0.00018988,2]
[392346779,1761384644075,-635.90189763,0.00018988,2]
[392346780,1761384644084,-500.0,0.00018988,2]
[392346781,1761384644094,-580.28194783,0.00018988,2]
[392346782,1761384644103,-500.0,0.00018988,2]
[392346783,1761384644113,-500.0,0.00018988,2]
[392346784,1761384644123,-500.0,0.00018988,2]
[392346785,1761384644132,-500.0,0.00018988,2]
[392346786,1761384644142,-500.0,0.00018988,2]
[392346787,1761384644152,-500.0,0.00018988,2]
[392346788,1761384644161,-500.0,0.00018988,2]
[392346789,1761384644170,-500.0,0.00018988,2]
[392346790,1761384644179,-500.0,0.00018988,2]
[392346791,1761384644188,-500.0,0.00018988,2]
[392346792,1761384644198,-500.0,0.00018988,2]
[392346793,1761384644207,-50000.0,0.00018989,2]
[392346794,1761384644217,-100000.0,0.0001899,2]
[392346795,1761384644226,-3914.31272099,0.00019,2]
[392346796,1761384644236,-1890.873466,0.00019032,2]
[392346797,1761384644246,-5018.09441972,0.00019071,2]
[392346798,1761384644255,-151.0,0.00019071,2]
[392346799,1761384644265,-409.29633955,0.00019128,2]
[392346800,1761384644278,-11748.79048684,0.00019155,2]
[392346801,1761384644287,-5018.09441969,0.00019163,2]
[392346802,1761384644296,-151.0,0.00019172,2]
[392346803,1761384644306,-500.0,0.00019178,2]
[392346804,1761384644314,-500.0,0.00019178,2]
[392346805,1761384644324,-500.0,0.00019178,2]
[392346806,1761384644334,-550.0,0.00019178,2]
[392346807,1761384644344,-500.0,0.00019178,2]
[392346808,1761384644356,-500.0,0.00019178,2]
[392346809,1761384644366,-500.0,0.00019178,2]
[392346810,1761384644376,-500.0,0.00019178,2]
[392346811,1761384644386,-151.0,0.00019178,2]
[392346812,1761384644401,-151.942775,0.00019178,2]
[392346813,1761384644411,-151.0,0.00019178,2]
[392346814,1761384644420,-254.971483,0.00019178,2]
[392346815,1761384644436,-644.185892,0.00019178,2]
[392346816,1761384644445,-644.185892,0.00019178,2]